fUSD/lending_fUSD_20250110
["ID","MTS","AMOUNT","RATE_DAILY","PERIOD"]
[348458461,1736537435466,-845.69,0.00010269,2]
[348458463,1736537435475,-1409.85,0.00010269,2]
[348458465,1736537435484,-500.0,0.00010269,2]
[348458467,1736537435494,-3659.62,0.00010269,2]
[348458469,1736537435504,-500.0,0.00010269,2]
[348458471,1736537435514,-2571.03,0.00010269,2]
[348458473,1736537435523,-500.0,0.00010269,2]
[348458475,1736537435533,-764.53,0.00010269,2]
[348458477,1736537435543,-500.0,0.00010269,2]
[348458479,1736537435552,-500.0,0.00010269,2]
[348458481,1736537435562,-500.0,0.00010269,2]
[348458483,1736537435571,-500.0,0.00010269,2]
[348458485,1736537435580,-500.0,0.00010269,2]
[348458487,1736537435590,-694.14,0.00010269,2]
[348458488,1736537435599,-500.0,0.00010269,2]
[348458490,1736537435608,-500.0,0.00010269,2]
[348458492,1736537435618,-500.0,0.00010269,2]
[348458494,1736537435628,-1098.76,0.00010269,2]
[348458496,1736537435637,-500.0,0.00010269,2]
[348458498,1736537435647,-1733.18,0.00010269,2]
[348458500,1736537435656,-500.0,0.00010269,2]
[348458502,1736537435665,-1960.15,0.00010269,2]
[348458504,1736537435676,-1512.28,0.00010269,2]
[348458506,1736537435686,-500.0,0.00010269,2]
[348458508,1736537435696,-500.0,0.00010269,2]
[348458511,1736537435709,-500.0,0.00010269,2]
[348458512,1736537435719,-500.0,0.00010269,2]
[348458514,1736537435729,-501.67,0.00010269,2]
[348458516,1736537435739,-501.67,0.00010269,2]
[348458518,1736537435750,-500.0,0.00010269,2]
[348458520,1736537435760,-500.0,0.00010269,2]
[348458522,1736537435769,-2292.55,0.00010269,2]
[348458524,1736537435780,-2330.59,0.00010269,2]
[348458526,1736537435790,-500.0,0.00010269,2]
[348458528,1736537435799,-500.0,0.00010269,2]
[348458531,1736537435809,-500.0,0.00010269,2]
[348458533,1736537435821,-500.0,0.00010269,2]
[348458535,1736537435831,-538.48,0.00010269,2]
[348458537,1736537435843,-500.0,0.00010269,2]
[348458539,1736537435852,-656.52,0.00010269,2]
[348458541,1736537435862,-500.0,0.00010269,2]
[348458543,1736537435873,-500.0,0.00010269,2]
[348458545,1736537435883,-500.0,0.00010269,2]
[348458547,1736537435893,-678.14,0.00010269,2]
[348458549,1736537435902,-500.0,0.00010269,2]
[348458551,1736537435912,-500.0,0.00010269,2]
[348458553,1736537435922,-500.0,0.00010269,2]
[348458555,1736537435933,-505.94721401,0.00010269,2]
[348458557,1736537435943,-500.0,0.00010269,2]
[348458559,1736537435953,-1949.08,0.00010269,2]
[348458561,1736537435963,-500.0,0.00010269,2]
[348458563,1736537435973,-500.0,0.00010269,2]
[348458565,1736537435983,-500.0,0.00010269,2]
[348458567,1736537435995,-500.0,0.00010269,2]
[348458569,1736537436005,-1080.72,0.00010269,2]
[348458571,1736537436015,-500.0,0.00010269,2]
[348458573,1736537436025,-173.283335,0.00010269,2]
[348458575,1736537436035,-2008.54,0.00010269,2]
[348458577,1736537436044,-1090.85,0.00010269,2]
[348458579,1736537436055,-500.0,0.00010269,2]
[348458581,1736537436066,-500.21005083,0.00010269,2]
[348458583,1736537436077,-500.0,0.00010269,2]
[348458585,1736537436087,-500.0,0.00010269,2]
[348458587,1736537436096,-500.0,0.00010269,2]
[348458589,1736537436106,-541.89,0.00010269,2]
[348458591,1736537436116,-500.0,0.00010269,2]
[348458593,1736537436126,-500.0,0.00010269,2]
[348458595,1736537436135,-500.0,0.0001027,2]
[348458597,1736537436146,-500.0,0.0001027,2]
[348458599,1736537436156,-500.0,0.0001027,2]
[348458600,1736537436169,-500.0,0.0001027,2]
[348458601,1736537436180,-500.0,0.0001027,2]
[348458602,1736537436190,-500.0,0.0001027,2]
[348458603,1736537436201,-500.0,0.0001027,2]
[348458604,1736537436211,-618.49935305,0.0001027,2]
[348458605,1736537436221,-503.21690544,0.0001027,2]
[348458606,1736537436231,-500.0,0.0001027,2]
[348458607,1736537436242,-500.0,0.0001027,2]
[348458608,1736537436255,-500.0,0.0001027,2]
[348458609,1736537436265,-500.0,0.0001027,2]
[348458610,1736537436275,-500.0,0.0001027,2]
[348458612,1736537436285,-500.0,0.0001027,2]
[348458613,1736537436295,-500.0,0.0001027,2]
[348458615,1736537436306,-500.0,0.0001027,2]
[348458618,1736537436316,-500.0,0.0001027,2]
[348458620,1736537436326,-500.0,0.0001027,2]
[348458622,1736537436336,-500.0,0.0001027,2]
[348458624,1736537436346,-632.06624344,0.0001027,2]
[348458626,1736537436356,-500.0,0.0001027,2]
[348458628,1736537436365,-500.0,0.0001027,2]
[348458629,1736537436374,-280.2004771,0.0001027,2]
[348458632,1736537436384,-500.0,0.0001027,2]
[348458634,1736537436394,-212.02409958,0.0001027,2]
[348458636,1736537436404,-203.86492456,0.0001027,2]
[348458638,1736537436414,-500.0,0.0001027,2]
[348458640,1736537436423,-500.0,0.0001027,2]
[348458641,1736537436432,-500.0,0.0001027,2]
[348458644,1736537436441,-537.86686458,0.0001027,2]
[348458646,1736537436452,-500.0,0.0001027,2]
[348458648,1736537436462,-500.0,0.0001027,2]
[348458650,1736537436471,-500.0,0.0001027,2]
[348458652,1736537436481,-500.0,0.0001027,2]
[348458654,1736537436491,-500.0,0.0001027,2]
[348458656,1736537436504,-500.0,0.0001027,2]
[348458658,1736537436514,-500.0,0.0001027,2]
[348458660,1736537436524,-500.0,0.0001027,2]
[348458662,1736537436534,-500.0,0.0001027,2]
[348458664,1736537436543,-500.0,0.0001027,2]
[348458666,1736537436553,-500.0,0.0001027,2]
[348458668,1736537436563,-309.88,0.0001027,2]
[348458670,1736537436573,-500.0,0.0001027,2]
[348458672,1736537436583,-500.0,0.0001027,2]
[348458674,1736537436592,-500.0,0.0001027,2]
[348458676,1736537436602,-500.0,0.0001027,2]
[348458678,1736537436612,-500.0,0.0001027,2]
[348458680,1736537436622,-521.93,0.0001027,2]
[348458682,1736537436632,-502.39529882,0.0001027,2]
[348458684,1736537436642,-500.0,0.0001027,2]
[348458686,1736537436652,-501.98064855,0.0001027,2]
[348458688,1736537436662,-500.0,0.0001027,2]
[348458690,1736537436672,-500.69429678,0.0001027,2]
[348458692,1736537436682,-500.0,0.0001027,2]
[348458694,1736537436691,-500.0,0.0001027,2]
[348458697,1736537436705,-500.0,0.0001027,2]
[348458699,1736537436715,-500.0,0.0001027,2]
[348458701,1736537436725,-500.0,0.0001027,2]
[348458703,1736537436734,-500.0,0.0001027,2]
[348458705,1736537436746,-500.0,0.0001027,2]
[348458707,1736537436755,-231.75,0.0001027,2]
[348458709,1736537436765,-500.0,0.0001027,2]
[348458711,1736537436776,-500.0,0.0001027,2]
[348458713,1736537436786,-341.05885066,0.0001027,2]
[348458715,1736537436796,-503.64279561,0.0001027,2]
[348458717,1736537436805,-503.95448428,0.0001027,2]
[348458719,1736537436816,-500.0,0.0001027,2]
[348458721,1736537436826,-544.08,0.0001027,2]
[348458723,1736537436836,-500.0,0.0001027,2]
[348458725,1736537436848,-502.912828,0.0001027,2]
[348458727,1736537436858,-500.0,0.0001027,2]
[348458729,1736537436868,-500.0,0.0001027,2]
[348458731,1736537436878,-374.49,0.0001027,2]
[348458733,1736537436888,-500.0,0.0001027,2]
[348458735,1736537436898,-172.91641693,0.0001027,2]
[348458737,1736537436908,-500.0,0.0001027,2]
[348458739,1736537436918,-500.0,0.0001027,2]
[348458741,1736537436928,-500.0,0.0001027,2]
[348458743,1736537436937,-500.0,0.0001027,2]
[348458745,1736537436948,-500.0,0.0001027,2]
[348458748,1736537436958,-500.0,0.0001027,2]
[348458750,1736537436968,-507.29330713,0.0001027,2]
[348458751,1736537436978,-338.17,0.0001027,2]
[348458753,1736537436988,-500.0,0.0001027,2]
[348458755,1736537436999,-500.0,0.0001027,2]
[348458757,1736537437008,-500.74140232,0.0001027,2]
[348458759,1736537437018,-500.0,0.0001027,2]
[348458761,1736537437027,-500.0,0.0001027,2]
[348458763,1736537437037,-500.0,0.0001027,2]
[348458765,1736537437047,-500.0,0.0001027,2]
[348458768,1736537437058,-407.85441101,0.0001027,2]
[348458769,1736537437067,-500.0,0.0001027,2]
[348458772,1736537437078,-500.0,0.0001027,2]
[348458774,1736537437088,-500.0,0.0001027,2]
[348458776,1736537437098,-500.0,0.0001027,2]
[348458778,1736537437108,-500.0,0.0001027,2]
[348458780,1736537437117,-500.0,0.0001027,2]
[348458782,1736537437128,-519.05,0.0001027,2]
[348458784,1736537437137,-156.35,0.0001027,2]
[348458786,1736537437147,-500.0,0.0001027,2]
[348458788,1736537437157,-500.0,0.0001027,2]
[348458790,1736537437167,-500.0,0.0001027,2]
[348458792,1736537437177,-500.0,0.0001027,2]
[348458794,1736537437186,-500.0,0.0001027,2]
[348458796,1736537437196,-500.0,0.0001027,2]
[348458798,1736537437206,-500.0,0.0001027,2]
[348458800,1736537437216,-500.0,0.0001027,2]
[348458802,1736537437226,-500.0,0.0001027,2]
[348458804,1736537437236,-500.0,0.0001027,2]
[348458806,1736537437248,-500.0,0.0001027,2]
[348458808,1736537437257,-500.0,0.0001027,2]
[348458810,1736537437267,-500.0,0.0001027,2]
[348458812,1736537437277,-649.78,0.0001027,2]
[348458815,1736537437288,-500.0,0.0001027,2]
[348458818,1736537437297,-500.0,0.0001027,2]
[348458820,1736537437306,-500.0,0.0001027,2]
[348458822,1736537437316,-500.0,0.0001027,2]
[348458824,1736537437326,-500.0,0.0001027,2]
[348458826,1736537437335,-500.0,0.0001027,2]
[348458828,1736537437345,-500.0,0.0001027,2]
[348458830,1736537437355,-500.0,0.0001027,2]
[348458832,1736537437364,-2819.27,0.0001027,2]
[348458834,1736537437373,-500.0,0.0001027,2]
[348458836,1736537437383,-500.0,0.0001027,2]
[348458838,1736537437392,-778.52,0.0001027,2]
[348458840,1736537437403,-279.11,0.0001027,2]
[348458842,1736537437413,-500.0,0.0001027,2]
[348458844,1736537437423,-500.0,0.0001027,2]
[348458846,1736537437433,-500.0,0.0001027,2]
[348458848,1736537437444,-1940.76,0.0001027,2]
[348458850,1736537437455,-500.0,0.0001027,2]
[348458852,1736537437464,-500.0,0.0001027,2]
[348458854,1736537437474,-500.0,0.0001027,2]
[348458856,1736537437484,-793.87,0.0001027,2]
[348458859,1736537437496,-500.0,0.0001027,2]
[348458860,1736537437505,-500.0,0.0001027,2]
[348458862,1736537437515,-500.0,0.0001027,2]
[348458865,1736537437525,-535.56,0.0001027,2]
[348458866,1736537437535,-3000.0,0.0001027,2]
[348458869,1736537437545,-515.06299601,0.0001027,2]
[348458870,1736537437555,-1160.56,0.0001027,2]
[348458872,1736537437564,-500.0,0.0001027,2]
[348458875,1736537437574,-500.0,0.0001027,2]
[348458876,1736537437583,-500.0,0.0001027,2]
[348458878,1736537437593,-500.0,0.0001027,2]
[348458881,1736537437602,-500.0,0.0001027,2]
[348458883,1736537437612,-500.0,0.0001027,2]
[348458884,1736537437623,-500.0,0.0001027,2]
[348458886,1736537437635,-500.0,0.0001027,2]
[348458889,1736537437644,-500.0,0.0001027,2]
[348458890,1736537437656,-500.0,0.0001027,2]
[348458892,1736537437666,-500.0,0.0001027,2]
[348458895,1736537437676,-500.0,0.0001027,2]
[348458897,1736537437686,-316.08770542,0.0001027,2]
[348458899,1736537437696,-500.0,0.0001027,2]
[348458901,1736537437708,-761.5,0.0001027,2]
[348458903,1736537437718,-500.0,0.0001027,2]
[348458905,1736537437728,-500.0,0.0001027,2]
[348458907,1736537437739,-464.24502252,0.0001027,2]
[348458909,1736537437750,-500.0,0.0001027,2]
[348458911,1736537437760,-500.0,0.0001027,2]
[348458913,1736537437770,-500.0,0.0001027,2]
[348458915,1736537437781,-2231.08,0.0001027,2]
[348458917,1736537437792,-624.44673214,0.0001027,2]
[348458919,1736537437801,-311.21,0.0001027,2]
[348458921,1736537437811,-1425.33,0.0001027,2]
[348458923,1736537437821,-500.0,0.0001027,2]
[348458925,1736537437831,-296.98891193,0.0001027,2]
[348458927,1736537437841,-500.0,0.0001027,2]
[348458929,1736537437850,-500.0,0.0001027,2]
[348458930,1736537437860,-2000.0,0.0001027,2]
[348458932,1736537437869,-500.0,0.0001027,2]
[348458934,1736537437879,-200.0,0.0001027,2]
[348458936,1736537437888,-500.0,0.0001027,2]
[348458938,1736537437898,-991.71,0.0001027,2]
[348458940,1736537437908,-500.0,0.0001027,2]
[348458942,1736537437918,-500.0,0.0001027,2]
[348458944,1736537437928,-997.56,0.0001027,2]
[348458946,1736537437938,-151.89,0.0001027,2]
[348458948,1736537437948,-17657.75394337,0.0001027,2]
[348458957,1736537438022,-42712.64623765,0.0001027,2]
[348458959,1736537438035,-276.44275921,0.0001027,2]
[348458979,1736537438046,-9895.42653816,0.0001027,2]
[348458983,1736537438255,-69372.07140563,0.0001027,2]
[348458985,1736537438266,-737.77419621,0.0001027,2]
[348458987,1736537438276,-500.64202309,0.00010271,2]
[348458989,1736537438286,-502.73523432,0.00010271,2]
[348458991,1736537438297,-500.0,0.00010271,2]
[348458993,1736537438307,-500.63039802,0.00010271,2]
[348458995,1736537438317,-500.88764755,0.00010271,2]
[348458997,1736537438327,-500.86620053,0.00010271,2]
[348458999,1736537438338,-501.19377836,0.00010271,2]
[348459002,1736537438349,-156.68560212,0.00010271,2]
[348459004,1736537438359,-500.0,0.00010271,2]
[348459006,1736537438369,-500.66813291,0.00010271,2]
[348459008,1736537438379,-500.24940782,0.00010271,2]
[348459010,1736537438389,-500.41380996,0.00010271,2]
[348459012,1736537438399,-500.3271352,0.00010271,2]
[348459014,1736537438409,-500.66082155,0.00010271,2]
[348459016,1736537438419,-500.68298453,0.00010271,2]
[348459018,1736537438430,-500.66779686,0.00010271,2]
[348459020,1736537438439,-500.48169029,0.00010271,2]
[348459022,1736537438449,-500.20259659,0.00010271,2]
[348459024,1736537438459,-500.0,0.00010271,2]
[348459026,1736537438468,-500.0,0.00010271,2]
[348459028,1736537438478,-500.0,0.00010271,2]
[348459030,1736537438488,-500.0,0.00010271,2]
[348459032,1736537438497,-500.0,0.00010271,2]
[348459034,1736537438507,-500.0,0.00010271,2]
[348459035,1736537438517,-500.0,0.00010271,2]
[348459036,1736537438527,-500.0,0.00010271,2]
[348459037,1736537438537,-500.0,0.00010271,2]
[348459038,1736537438547,-500.23270333,0.00010271,2]
[348459039,1736537438557,-1000.0,0.00010271,2]
[348459040,1736537438568,-500.0,0.00010271,2]
[348459041,1736537438578,-500.60270863,0.00010271,2]
[348459042,1736537438588,-500.5591255,0.00010271,2]
[348459043,1736537438597,-500.40568224,0.00010271,2]
[348459044,1736537438607,-500.0,0.00010271,2]
[348459045,1736537438617,-500.0,0.00010271,2]
[348459046,1736537438627,-500.0,0.00010271,2]
[348459047,1736537438637,-411.14625739,0.00010271,2]
[348459048,1736537438646,-500.0,0.00010271,2]
[348459049,1736537438656,-500.0,0.00010271,2]
[348459050,1736537438667,-500.0,0.00010271,2]
[348459051,1736537438677,-500.0,0.00010271,2]
[348459052,1736537438688,-500.0,0.00010271,2]
[348459053,1736537438698,-500.0,0.00010271,2]
[348459054,1736537438711,-669.57,0.00010271,2]
[348459055,1736537438720,-501.35,0.00010271,2]
[348459056,1736537438731,-500.0,0.00010271,2]
[348459057,1736537438741,-500.0,0.00010271,2]
[348459058,1736537438751,-1024.1,0.00010271,2]
[348459059,1736537438761,-604.68,0.00010271,2]
[348459060,1736537438772,-500.0,0.00010271,2]
[348459061,1736537438783,-500.0,0.00010271,2]
[348459062,1736537438795,-500.0,0.00010271,2]
[348459063,1736537438804,-589.51,0.00010271,2]
[348459064,1736537438816,-500.0,0.00010271,2]
[348459065,1736537438826,-500.0,0.00010271,2]
[348459066,1736537438836,-567.38,0.00010271,2]
[348459067,1736537438846,-958.18,0.00010271,2]
[348459068,1736537438856,-1016.29,0.00010271,2]
[348459069,1736537438868,-1836.11,0.00010271,2]
[348459070,1736537438877,-2165.62,0.00010271,2]
[348459071,1736537438887,-500.0,0.00010271,2]
[348459072,1736537438897,-500.0,0.00010271,2]
[348459073,1736537438907,-500.0,0.00010272,2]
[348459074,1736537438917,-500.0,0.00010272,2]
[348459075,1736537438927,-972.23,0.00010272,2]
[348459076,1736537438937,-500.0,0.00010272,2]
[348459077,1736537438948,-500.0,0.00010272,2]
[348459078,1736537438958,-753.01,0.00010272,2]
[348459079,1736537438969,-500.0,0.00010272,2]
[348459080,1736537438980,-593.76,0.00010272,2]
[348459081,1736537438990,-500.0,0.00010272,2]
[348459082,1736537439001,-1000.0,0.00010272,2]
[348459083,1736537439011,-500.0,0.00010272,2]
[348459084,1736537439022,-500.0,0.00010272,2]
[348459085,1736537439033,-853.54,0.00010272,2]
[348459086,1736537439042,-996.68,0.00010273,2]
[348459087,1736537439052,-500.0,0.00010273,2]
[348459088,1736537439063,-500.0,0.00010273,2]
[348459089,1736537439074,-925.78,0.00010273,2]
[348459090,1736537439084,-835.51,0.00010273,2]
[348459091,1736537439094,-1366.37,0.00010273,2]
[348459092,1736537439105,-500.0,0.00010273,2]
[348459093,1736537439116,-1310.54,0.00010273,2]
[348459094,1736537439126,-691.47,0.00010273,2]
[348459095,1736537439137,-522.1,0.00010273,2]
[348459096,1736537439146,-2014.11,0.00010273,2]
[348459097,1736537439158,-500.0,0.00010273,2]
[348459098,1736537439168,-500.0,0.00010273,2]
[348459099,1736537439179,-691.09,0.00010273,2]
[348459100,1736537439190,-500.0,0.00010273,2]
[348459101,1736537439200,-653.03,0.00010273,2]
[348459102,1736537439210,-500.0,0.00010273,2]
[348459103,1736537439220,-1116.95,0.00010273,2]
[348459104,1736537439230,-383.0,0.00010274,2]
[348459105,1736537439241,-300.85,0.00010293,2]
[348459106,1736537439252,-500.0,0.00010301,2]
[348459107,1736537439262,-200.37027247,0.00010309,2]
[348459108,1736537439273,-1000.0,0.00010348,2]
[348459109,1736537439283,-200.0,0.00010373,2]
[348459110,1736537439294,-5558.0,0.000104,3]
[348459111,1736537439304,-151.03412668,0.0001041,2]
[348459112,1736537439315,-561.36,0.00010431,2]
[348459113,1736537439325,-200.37027247,0.00010445,2]
[348459114,1736537439335,-200.0,0.00010476,2]
[348459115,1736537439345,-558.41,0.0001052,2]
[348459116,1736537439357,-500.0,0.00010542,2]
[348459117,1736537439367,-500.0,0.00010543,2]
[348459119,1736537439377,-500.0,0.00010543,2]
[348459120,1736537439386,-500.0,0.00010543,2]
[348459122,1736537439397,-471.24,0.00010543,2]
[348459123,1736537439407,-500.0,0.00010543,2]
[348459124,1736537439417,-500.0,0.00010543,2]
[348459125,1736537439427,-500.0,0.00010543,2]
[348459126,1736537439437,-500.0,0.00010543,2]
[348459128,1736537439448,-500.0,0.00010543,2]
[348459129,1736537439458,-500.0,0.00010543,2]
[348459131,1736537439468,-500.0,0.00010543,2]
[348459132,1736537439478,-500.0,0.00010543,2]
[348459133,1736537439488,-500.0,0.00010543,2]
[348459134,1736537439501,-500.0,0.00010543,2]
[348459135,1736537439510,-500.0,0.00010543,2]
[348459137,1736537439520,-500.0,0.00010543,2]
[348459138,1736537439530,-500.0,0.00010543,2]
[348459139,1736537439540,-500.0,0.00010543,2]
[348459140,1736537439550,-500.0,0.00010543,2]
[348459141,1736537439560,-560.64,0.00010543,2]
[348459142,1736537439570,-500.0,0.00010543,2]
[348459143,1736537439580,-500.0,0.00010543,2]
[348459144,1736537439591,-500.0,0.00010543,2]
[348459145,1736537439601,-512.1,0.00010543,2]
[348459146,1736537439611,-500.0,0.00010543,2]
[348459147,1736537439620,-200.79688933,0.00010543,2]
[348459148,1736537439630,-500.0,0.00010543,2]
[348459149,1736537439641,-500.0,0.00010543,2]
[348459150,1736537439651,-500.0,0.00010543,2]
[348459151,1736537439660,-500.0,0.00010543,2]
[348459152,1736537439670,-500.0,0.00010543,2]
[348459153,1736537439680,-500.0,0.00010543,2]
[348459154,1736537439691,-500.0,0.00010543,2]
[348459155,1736537439705,-500.0,0.00010543,2]
[348459156,1736537439715,-500.0,0.00010543,2]
[348459157,1736537439724,-782.15,0.00010543,2]
[348459158,1736537439736,-500.0,0.00010543,2]
[348459159,1736537439751,-330.46173303,0.00010543,2]
[348459160,1736537439762,-500.0,0.00010543,2]
[348459161,1736537439771,-500.0,0.00010543,2]
[348459162,1736537439782,-500.0,0.00010543,2]
[348459163,1736537439793,-500.0,0.00010543,2]
[348459164,1736537439803,-500.0,0.00010543,2]
[348459165,1736537439815,-500.0,0.00010543,2]
[348459166,1736537439825,-500.0,0.00010543,2]
[348459167,1736537439835,-500.0,0.00010543,2]
[348459168,1736537439845,-500.0,0.00010543,2]
[348459169,1736537439855,-607.64,0.00010543,2]
[348459170,1736537439865,-500.0,0.00010543,2]
[348459171,1736537439876,-500.0,0.00010543,2]
[348459172,1736537439886,-500.0,0.00010543,2]
[348459173,1736537439896,-500.0,0.00010543,2]
[348459174,1736537439906,-500.0,0.00010543,2]
[348459175,1736537439916,-500.0,0.00010543,2]
[348459176,1736537439926,-500.0,0.00010543,2]
[348459177,1736537439936,-500.0,0.00010543,2]
[348459178,1736537439946,-500.0,0.00010543,2]
[348459179,1736537439956,-500.0,0.00010543,2]
[348459180,1736537439966,-500.0,0.00010543,2]
[348459181,1736537439976,-500.0,0.00010543,2]
[348459182,1736537439986,-500.0,0.00010543,2]
[348459183,1736537439997,-500.0,0.00010543,2]
[348459184,1736537440007,-500.0,0.00010543,2]
[348459185,1736537440017,-500.0,0.00010543,2]
[348459186,1736537440027,-500.0,0.00010543,2]
[348459187,1736537440037,-500.0,0.00010543,2]
[348459188,1736537440047,-566.54,0.00010543,2]
[348459189,1736537440058,-500.0,0.00010543,2]
[348459190,1736537440068,-500.0,0.00010543,2]
[348459191,1736537440079,-614.45,0.00010543,2]
[348459192,1736537440088,-500.0,0.00010543,2]
[348459193,1736537440098,-500.0,0.00010543,2]
[348459194,1736537440110,-500.0,0.00010543,2]
[348459195,1736537440121,-500.0,0.00010543,2]
[348459196,1736537440131,-500.0,0.00010543,2]
[348459197,1736537440142,-564.020936,0.00010543,2]
[348459198,1736537440152,-500.0,0.00010543,2]
[348459199,1736537440162,-500.0,0.00010543,2]
[348459200,1736537440171,-869.78,0.00010543,2]
[348459201,1736537440182,-500.0,0.00010543,2]
[348459202,1736537440192,-500.0,0.00010543,2]
[348459203,1736537440204,-600.86,0.00010543,2]
[348459205,1736537440215,-516.616166,0.00010543,2]
[348459206,1736537440224,-500.0,0.00010543,2]
[348459207,1736537440235,-500.0,0.00010543,2]
[348459208,1736537440246,-500.0,0.00010543,2]
[348459209,1736537440256,-500.0,0.00010543,2]
[348459210,1736537440266,-508.79,0.00010543,2]
[348459211,1736537440276,-500.0,0.00010543,2]
[348459212,1736537440287,-2596.22,0.00010543,2]
[348459213,1736537440297,-500.0,0.00010543,2]
[348459214,1736537440307,-500.0,0.00010543,2]
[348459215,1736537440316,-500.0,0.00010543,2]
[348459216,1736537440326,-500.0,0.00010543,2]
[348459217,1736537440335,-500.0,0.00010543,2]
[348459218,1736537440344,-500.0,0.00010543,2]
[348459219,1736537440354,-500.0,0.00010543,2]
[348459220,1736537440363,-500.0,0.00010543,2]
[348459221,1736537440373,-500.0,0.00010543,2]
[348459222,1736537440383,-229.39,0.00010543,2]
[348459223,1736537440394,-500.0,0.00010543,2]
[348459224,1736537440406,-500.0,0.00010543,2]
[348459225,1736537440416,-500.0,0.00010543,2]
[348459226,1736537440428,-500.0,0.00010543,2]
[348459227,1736537440439,-2347.56,0.00010543,2]
[348459228,1736537440448,-500.0,0.00010543,2]
[348459229,1736537440458,-500.0,0.00010543,2]
[348459230,1736537440467,-500.0,0.00010543,2]
[348459231,1736537440478,-500.0,0.00010543,2]
[348459232,1736537440488,-500.0,0.00010543,2]
[348459233,1736537440501,-500.0,0.00010543,2]
[348459234,1736537440510,-540.18,0.00010543,2]
[348459235,1736537440520,-500.0,0.00010543,2]
[348459236,1736537440530,-500.0,0.00010543,2]
[348459237,1736537440540,-324.5319,0.00010543,2]
[348459238,1736537440551,-500.0,0.00010543,2]
[348459239,1736537440560,-500.0,0.00010543,2]
[348459240,1736537440571,-500.0,0.00010543,2]
[348459241,1736537440582,-500.0,0.00010543,2]
[348459242,1736537440592,-500.0,0.00010543,2]
[348459243,1736537440601,-500.0,0.00010543,2]
[348459244,1736537440611,-500.0,0.00010543,2]
[348459245,1736537440622,-500.0,0.00010543,2]
[348459246,1736537440631,-1005.9,0.00010543,2]
[348459247,1736537440641,-1644.03,0.00010543,2]
[348459248,1736537440651,-500.0,0.00010543,2]
[348459249,1736537440660,-867.9,0.00010543,2]
[348459250,1736537440670,-500.0,0.00010543,2]
[348459251,1736537440679,-500.0,0.00010543,2]
[348459252,1736537440689,-500.0,0.00010543,2]
[348459253,1736537440701,-235.23,0.00010543,2]
[348459254,1736537440711,-500.0,0.00010543,2]
[348459255,1736537440720,-1720.31,0.00010543,2]
[348459256,1736537440730,-576.06,0.00010543,2]
[348459257,1736537440739,-507.89,0.00010543,2]
[348459258,1736537440752,-845.69,0.00010543,2]
[348459259,1736537440762,-1409.85,0.00010543,2]
[348459260,1736537440772,-500.0,0.00010543,2]
[348459261,1736537440781,-3659.62,0.00010543,2]
[348459262,1736537440791,-500.0,0.00010543,2]
[348459263,1736537440859,-2571.03,0.00010543,2]